[Event "*** SCC Grand Prix: Titled Tuesday Blitz"]
[Site "Chess.com"]
[Date "2020.07.21"]
[Round "2"]
[White "NormWeinstein"]
[Black "SidArun"]
[Result "1-0"]
[WhiteElo "2460"]
[BlackElo "2253"]
[TimeControl "180+1"]
[EndTime "10:17:01 PDT"]
[Termination "NormWeinstein won by resignation"]

1. e4 {[%clk 0:02:59]} 1... c6 {[%clk 0:02:59.9]} 2. d4 {[%clk 0:02:54.9]} 2...
d5 {[%clk 0:02:59.9]} 3. exd5 {[%clk 0:02:55]} 3... cxd5 {[%clk 0:02:59.7]} 4.
c4 {[%clk 0:02:55.5]} 4... Nf6 {[%clk 0:02:59.8]} 5. Nc3 {[%clk 0:02:55.7]} 5...
Nc6 {[%clk 0:02:59.2]} 6. Nf3 {[%clk 0:02:55.4]} 6... Bg4 {[%clk 0:02:58.7]} 7.
cxd5 {[%clk 0:02:55.8]} 7... Nxd5 {[%clk 0:02:58.7]} 8. Bc4 {[%clk 0:02:55.9]}
8... e6 {[%clk 0:02:47.2]} 9. O-O {[%clk 0:02:55.3]} 9... Bxf3 {[%clk
0:02:39.5]} 10. Qxf3 {[%clk 0:02:54.1]} 10... Nxd4 {[%clk 0:02:37.2]} 11. Qe4
{[%clk 0:02:53.8]} 11... Nxc3 {[%clk 0:02:35.4]} 12. bxc3 {[%clk 0:02:53.5]}
12... Nc6 {[%clk 0:02:35.4]} 13. Rb1 {[%clk 0:02:50]} 13... Qc7 {[%clk 0:02:05]}
14. Bf4 {[%clk 0:02:46.8]} 14... Bd6 {[%clk 0:02:05.1]} 15. Bxd6 {[%clk
0:02:45.1]} 15... Qxd6 {[%clk 0:02:05]} 16. Rxb7 {[%clk 0:02:44.3]} 16... O-O
{[%clk 0:02:05.2]} 17. Bd3 {[%clk 0:02:18.7]} 17... f5 {[%clk 0:01:56.1]} 18.
Qe3 {[%clk 0:01:58.2]} 18... Ne5 {[%clk 0:01:35.5]} 19. Bc2 {[%clk 0:01:51.9]}
19... Ng4 {[%clk 0:01:17.5]} 20. Qg3 {[%clk 0:01:51.2]} 20... Qxg3 {[%clk
0:00:58.2]} 21. hxg3 {[%clk 0:01:50.8]} 21... Rf7 {[%clk 0:00:58.7]} 22. Rfb1
{[%clk 0:01:46.4]} 22... Ne5 {[%clk 0:00:52.8]} 23. Ba4 {[%clk 0:01:35.2]} 23...
Rc8 {[%clk 0:00:44.6]} 24. Rb8 {[%clk 0:01:22.9]} 24... Rc7 {[%clk 0:00:38.6]}
25. Bb3 {[%clk 0:01:17.6]} 25... Kf7 {[%clk 0:00:34.7]} 26. Rb5 {[%clk
0:01:14.9]} 26... Nd3 {[%clk 0:00:24.7]} 27. Rxf5+ {[%clk 0:01:11.1]} 27... Ke7
{[%clk 0:00:23.4]} 28. Rf3 {[%clk 0:01:09.4]} 28... Rxc3 {[%clk 0:00:23.2]} 29.
Kh2 {[%clk 0:00:58.3]} 29... R8c5 {[%clk 0:00:19.6]} 30. g4 {[%clk 0:00:53.8]}
30... Ne5 {[%clk 0:00:17.2]} 31. Rxc3 {[%clk 0:00:52.9]} 31... Rxc3 {[%clk
0:00:17.1]} 32. f3 {[%clk 0:00:53.2]} 32... a5 {[%clk 0:00:16.2]} 33. Re1 {[%clk
0:00:52.4]} 33... Kd6 {[%clk 0:00:15.2]} 34. Rd1+ {[%clk 0:00:51.8]} 34... Rd3
{[%clk 0:00:14.5]} 35. Rc1 {[%clk 0:00:49.7]} 35... Rd4 {[%clk 0:00:13.6]} 36.
Rc8 {[%clk 0:00:48.2]} 36... a4 {[%clk 0:00:13.9]} 37. Rd8+ {[%clk 0:00:48.1]}
37... Kc5 {[%clk 0:00:13.4]} 38. Rxd4 {[%clk 0:00:46.3]} 38... Kxd4 {[%clk
0:00:14.3]} 39. Bxa4 {[%clk 0:00:46.3]} 39... Nc4 {[%clk 0:00:12.4]} 40. Bb3
{[%clk 0:00:45.6]} 40... Na5 {[%clk 0:00:12]} 41. Bxe6 {[%clk 0:00:45.1]} 1-0

[Event "*** SCC Grand Prix: Titled Tuesday Blitz"]
[Site "Chess.com"]
[Date "2020.07.21"]
[Round "2"]
[White "Ramil_Faizrakhmanov"]
[Black "CrushingKings"]
[Result "1/2-1/2"]
[WhiteElo "2799"]
[BlackElo "2532"]
[TimeControl "180+1"]
[EndTime "10:17:02 PDT"]
[Termination "Game drawn by repetition"]

1. d4 {[%clk 0:03:00.8]} 1... Nf6 {[%clk 0:02:59.6]} 2. c4 {[%clk 0:03:01.2]}
2... g6 {[%clk 0:02:59.6]} 3. Nc3 {[%clk 0:03:01]} 3... Bg7 {[%clk 0:02:59.9]}
4. e4 {[%clk 0:03:01.1]} 4... d6 {[%clk 0:03:00.6]} 5. Nf3 {[%clk 0:03:01.3]}
5... Nbd7 {[%clk 0:03:00.9]} 6. h3 {[%clk 0:03:01.7]} 6... e5 {[%clk 0:03:01.5]}
7. d5 {[%clk 0:03:02.1]} 7... Nc5 {[%clk 0:03:02.1]} 8. Qc2 {[%clk 0:02:57.8]}
8... a5 {[%clk 0:03:02.6]} 9. Be3 {[%clk 0:02:57.1]} 9... b6 {[%clk 0:03:02.3]}
10. g4 {[%clk 0:02:56.9]} 10... Bd7 {[%clk 0:03:02.5]} 11. Be2 {[%clk
0:02:56.5]} 11... a4 {[%clk 0:03:02.2]} 12. Nd2 {[%clk 0:02:55.2]} 12... Ng8
{[%clk 0:02:53]} 13. g5 {[%clk 0:02:53.7]} 13... h6 {[%clk 0:02:52.2]} 14. h4
{[%clk 0:02:31.7]} 14... hxg5 {[%clk 0:02:51.5]} 15. Bxg5 {[%clk 0:02:32.6]}
15... Bf6 {[%clk 0:02:36.7]} 16. Rg1 {[%clk 0:02:33.5]} 16... Bxg5 {[%clk
0:02:07.3]} 17. hxg5 {[%clk 0:02:34.4]} 17... f5 {[%clk 0:02:07.8]} 18. gxf6
{[%clk 0:02:31]} 18... Qxf6 {[%clk 0:02:07.4]} 19. O-O-O {[%clk 0:02:29.7]}
19... Qxf2 {[%clk 0:01:54.2]} 20. Rxg6 {[%clk 0:02:16.4]} 20... O-O-O {[%clk
0:01:24.6]} 21. Bg4 {[%clk 0:02:14.7]} 21... Bxg4 {[%clk 0:01:02]} 22. Rxg4
{[%clk 0:02:15.6]} 22... Nf6 {[%clk 0:01:02.6]} 23. Rgg1 {[%clk 0:02:13.6]}
23... Rh2 {[%clk 0:00:32.9]} 24. Rge1 {[%clk 0:01:28.6]} 24... Ng4 {[%clk
0:00:26.8]} 25. Re2 {[%clk 0:01:18]} 25... Qf4 {[%clk 0:00:26.6]} 26. Rxh2
{[%clk 0:01:18.2]} 26... Qxh2 {[%clk 0:00:26.8]} 27. Nf1 {[%clk 0:01:04.3]}
27... Qf4+ {[%clk 0:00:19.3]} 28. Kb1 {[%clk 0:01:05.2]} 28... Rf8 {[%clk
0:00:19]} 29. a3 {[%clk 0:00:55.9]} 29... Qxf1 {[%clk 0:00:14]} 30. Rxf1 {[%clk
0:00:56.8]} 30... Rxf1+ {[%clk 0:00:14.5]} 31. Ka2 {[%clk 0:00:57.2]} 31... Nb3
{[%clk 0:00:14.8]} 32. Nxa4 {[%clk 0:00:54.7]} 32... Nc1+ {[%clk 0:00:14.8]} 33.
Kb1 {[%clk 0:00:52.2]} 33... Nd3+ {[%clk 0:00:12.3]} 34. Ka2 {[%clk 0:00:51.8]}
34... Nc1+ {[%clk 0:00:12.9]} 35. Kb1 {[%clk 0:00:52.1]} 35... Nd3+ {[%clk
0:00:10.9]} 36. Ka2 {[%clk 0:00:52.3]} 36... Nc1+ {[%clk 0:00:11.5]} 1/2-1/2

[Event "*** SCC Grand Prix: Titled Tuesday Blitz"]
[Site "Chess.com"]
[Date "2020.07.21"]
[Round "2"]
[White "AquivaRubinstein"]
[Black "ENajer77"]
[Result "0-1"]
[WhiteElo "2465"]
[BlackElo "2692"]
[TimeControl "180+1"]
[EndTime "10:17:04 PDT"]
[Termination "ENajer77 won by checkmate"]

1. d4 {[%clk 0:03:00.9]} 1... Nf6 {[%clk 0:02:58.5]} 2. c4 {[%clk 0:03:00.5]}
2... e6 {[%clk 0:02:58.1]} 3. Nf3 {[%clk 0:02:58.7]} 3... Bb4+ {[%clk
0:02:57.5]} 4. Nbd2 {[%clk 0:02:56.6]} 4... O-O {[%clk 0:02:55.6]} 5. a3 {[%clk
0:02:54.2]} 5... Be7 {[%clk 0:02:56.1]} 6. e4 {[%clk 0:02:53.4]} 6... d6 {[%clk
0:02:56.6]} 7. Bd3 {[%clk 0:02:50.9]} 7... e5 {[%clk 0:02:56.1]} 8. O-O {[%clk
0:02:41.4]} 8... exd4 {[%clk 0:02:44]} 9. Nxd4 {[%clk 0:02:40.7]} 9... a5 {[%clk
0:02:43]} 10. Nb1 {[%clk 0:02:33.6]} 10... Nc6 {[%clk 0:02:32.1]} 11. Nxc6
{[%clk 0:02:09.6]} 11... bxc6 {[%clk 0:02:32.2]} 12. Nc3 {[%clk 0:02:09]} 12...
Nd7 {[%clk 0:02:22.4]} 13. Be3 {[%clk 0:01:57.6]} 13... Bf6 {[%clk 0:02:18.1]}
14. Qc2 {[%clk 0:01:49.4]} 14... Ne5 {[%clk 0:02:01.4]} 15. Be2 {[%clk
0:01:45.9]} 15... Ng4 {[%clk 0:02:01]} 16. Bxg4 {[%clk 0:01:40.2]} 16... Bxg4
{[%clk 0:02:00.8]} 17. Ne2 {[%clk 0:01:19.5]} 17... Bxe2 {[%clk 0:01:37.7]} 18.
Qxe2 {[%clk 0:01:19]} 18... Rb8 {[%clk 0:01:37.8]} 19. Rab1 {[%clk 0:01:15.1]}
19... Rb3 {[%clk 0:01:35.8]} 20. Rfd1 {[%clk 0:01:07.2]} 20... Qb8 {[%clk
0:01:32.2]} 21. Qd2 {[%clk 0:00:40.2]} 21... a4 {[%clk 0:01:19.1]} 22. Bd4
{[%clk 0:00:39.8]} 22... Bxd4 {[%clk 0:01:12.2]} 23. Qxd4 {[%clk 0:00:39.6]}
23... c5 {[%clk 0:01:11.9]} 24. Qd2 {[%clk 0:00:32.4]} 24... h6 {[%clk
0:00:58.6]} 25. f3 {[%clk 0:00:32.2]} 25... Qb6 {[%clk 0:00:56.5]} 26. Qc2
{[%clk 0:00:23.5]} 26... Rb8 {[%clk 0:00:54.9]} 27. h3 {[%clk 0:00:20.2]} 27...
Rxb2 {[%clk 0:00:46.1]} 28. Rxb2 {[%clk 0:00:19.6]} 28... Qxb2 {[%clk
0:00:46.7]} 29. Qxa4 {[%clk 0:00:20.1]} 29... Qe2 {[%clk 0:00:47]} 30. Rf1
{[%clk 0:00:04.3]} 30... Rb2 {[%clk 0:00:36.7]} 31. Qe8+ {[%clk 0:00:02.2]}
31... Kh7 {[%clk 0:00:35.9]} 32. Qxf7 {[%clk 0:00:02.8]} 32... Qxg2# {[%clk
0:00:35]} 0-1

[Event "*** SCC Grand Prix: Titled Tuesday Blitz"]
[Site "Chess.com"]
[Date "2020.07.21"]
[Round "2"]
[White "mamey78"]
[Black "GukeshDommaraju"]
[Result "1-0"]
[WhiteElo "2498"]
[BlackElo "2708"]
[TimeControl "180+1"]
[EndTime "10:17:05 PDT"]
[Termination "mamey78 won by resignation"]

1. e4 {[%clk 0:03:00.9]} 1... c5 {[%clk 0:02:59.7]} 2. Nf3 {[%clk 0:03:00]} 2...
Nc6 {[%clk 0:02:59.8]} 3. c3 {[%clk 0:02:59.7]} 3... Nf6 {[%clk 0:02:59.6]} 4.
e5 {[%clk 0:02:59.9]} 4... Nd5 {[%clk 0:02:59.8]} 5. d4 {[%clk 0:03:00.8]} 5...
e6 {[%clk 0:02:59.9]} 6. Bc4 {[%clk 0:02:57.7]} 6... cxd4 {[%clk 0:02:56.5]} 7.
cxd4 {[%clk 0:02:56.9]} 7... d6 {[%clk 0:02:56.7]} 8. O-O {[%clk 0:02:56.1]}
8... Be7 {[%clk 0:02:56.6]} 9. Qe2 {[%clk 0:02:55.6]} 9... O-O {[%clk
0:02:56.5]} 10. Nc3 {[%clk 0:02:54.9]} 10... dxe5 {[%clk 0:02:56.4]} 11. dxe5
{[%clk 0:02:53.3]} 11... Nxc3 {[%clk 0:02:56]} 12. bxc3 {[%clk 0:02:54.2]} 12...
Bd7 {[%clk 0:02:55.9]} 13. Qe4 {[%clk 0:02:49.5]} 13... Qc7 {[%clk 0:02:50.6]}
14. Re1 {[%clk 0:02:45.9]} 14... Rfd8 {[%clk 0:02:49.4]} 15. Bd3 {[%clk
0:02:44.5]} 15... g6 {[%clk 0:02:48.8]} 16. Bg5 {[%clk 0:01:59.4]} 16... Be8
{[%clk 0:02:41.8]} 17. Rad1 {[%clk 0:01:55.4]} 17... Rd5 {[%clk 0:02:20.7]} 18.
c4 {[%clk 0:01:44.5]} 18... Ra5 {[%clk 0:02:07]} 19. Qh4 {[%clk 0:01:33.9]}
19... Rd8 {[%clk 0:01:33.8]} 20. Bf6 {[%clk 0:01:30.7]} 20... Bxf6 {[%clk
0:01:23.9]} 21. exf6 {[%clk 0:01:29.1]} 21... Rh5 {[%clk 0:01:23.3]} 22. Qg4
{[%clk 0:01:20.6]} 22... Nd4 {[%clk 0:00:46.2]} 23. h3 {[%clk 0:01:08.7]} 23...
Nxf3+ {[%clk 0:00:44.9]} 24. Qxf3 {[%clk 0:01:09.6]} 24... Bc6 {[%clk
0:00:43.7]} 25. Be4 {[%clk 0:00:54.1]} 25... Bxe4 {[%clk 0:00:42.5]} 26. Qxe4
{[%clk 0:00:53.2]} 26... Rf8 {[%clk 0:00:27.8]} 27. Rd3 {[%clk 0:00:38]} 27...
Rf5 {[%clk 0:00:26.5]} 28. Rf3 {[%clk 0:00:37.2]} 28... Rxf3 {[%clk 0:00:25.6]}
29. Qxf3 {[%clk 0:00:37]} 29... Qxc4 {[%clk 0:00:25.8]} 30. Qxb7 {[%clk
0:00:36.2]} 30... Qxa2 {[%clk 0:00:25.8]} 31. Qf3 {[%clk 0:00:31.9]} 31... Qd5
{[%clk 0:00:21.4]} 32. Qf4 {[%clk 0:00:29.7]} 32... a5 {[%clk 0:00:20.3]} 33.
Qh6 {[%clk 0:00:27.5]} 1-0

[Event "*** SCC Grand Prix: Titled Tuesday Blitz"]
[Site "Chess.com"]
[Date "2020.07.21"]
[Round "2"]
[White "Ginger_GM"]
[Black "ItsCheckM8Mate"]
[Result "1-0"]
[WhiteElo "2585"]
[BlackElo "2284"]
[TimeControl "180+1"]
[EndTime "10:17:05 PDT"]
[Termination "Ginger_GM won by resignation"]

1. d4 {[%clk 0:03:00.9]} 1... Nf6 {[%clk 0:02:56.7]} 2. Nc3 {[%clk 0:02:59.9]}
2... d5 {[%clk 0:02:54.4]} 3. Bf4 {[%clk 0:02:59]} 3... c5 {[%clk 0:02:47.6]} 4.
e3 {[%clk 0:02:58.5]} 4... e6 {[%clk 0:02:43.1]} 5. Nb5 {[%clk 0:02:58.2]} 5...
Na6 {[%clk 0:02:41.6]} 6. c3 {[%clk 0:02:57.9]} 6... Be7 {[%clk 0:02:40.2]} 7.
Nf3 {[%clk 0:02:57]} 7... O-O {[%clk 0:02:39]} 8. a4 {[%clk 0:02:56.5]} 8... Nh5
{[%clk 0:02:30.4]} 9. Be5 {[%clk 0:02:51.8]} 9... f6 {[%clk 0:02:28.9]} 10. Bg3
{[%clk 0:02:51.3]} 10... Nxg3 {[%clk 0:02:16.3]} 11. hxg3 {[%clk 0:02:51.1]}
11... Nc7 {[%clk 0:02:14.4]} 12. Bd3 {[%clk 0:02:43.5]} 12... h6 {[%clk
0:02:03]} 13. Nh4 {[%clk 0:02:11.4]} 13... Nxb5 {[%clk 0:02:00.5]} 14. axb5
{[%clk 0:02:10.5]} 14... e5 {[%clk 0:01:58.8]} 15. Ng6 {[%clk 0:01:51.3]} 15...
Re8 {[%clk 0:01:42.5]} 16. dxe5 {[%clk 0:01:34.6]} 16... fxe5 {[%clk 0:01:41.9]}
17. Nxe5 {[%clk 0:01:33.5]} 17... Bf6 {[%clk 0:01:32.8]} 18. Ng4 {[%clk
0:01:19]} 18... d4 {[%clk 0:01:28]} 19. Bg6 {[%clk 0:00:59.5]} 19... dxe3 {[%clk
0:00:58]} 20. Nxe3 {[%clk 0:00:51.2]} 20... Rf8 {[%clk 0:00:40.7]} 21. O-O
{[%clk 0:00:45.1]} 21... Be6 {[%clk 0:00:34]} 22. Be4 {[%clk 0:00:41.8]} 22...
Qb6 {[%clk 0:00:29.4]} 23. Bd5 {[%clk 0:00:38.5]} 23... Rad8 {[%clk 0:00:22.7]}
24. Qb3 {[%clk 0:00:37.5]} 24... Rfe8 {[%clk 0:00:16.7]} 25. Rad1 {[%clk
0:00:33.5]} 25... Bxd5 {[%clk 0:00:12.9]} 26. Nxd5 {[%clk 0:00:33.1]} 26... Qe6
{[%clk 0:00:10.2]} 27. Nxf6+ {[%clk 0:00:33.1]} 27... gxf6 {[%clk 0:00:09.4]}
28. Qxe6+ {[%clk 0:00:33.3]} 28... Rxe6 {[%clk 0:00:10.3]} 29. Rxd8+ {[%clk
0:00:33.5]} 1-0

[Event "*** SCC Grand Prix: Titled Tuesday Blitz"]
[Site "Chess.com"]
[Date "2020.07.21"]
[Round "2"]
[White "lacafi"]
[Black "MathiasWomacka"]
[Result "0-1"]
[WhiteElo "2228"]
[BlackElo "2446"]
[TimeControl "180+1"]
[EndTime "10:17:10 PDT"]
[Termination "MathiasWomacka won by resignation"]

1. d4 {[%clk 0:03:00.9]} 1... Nf6 {[%clk 0:02:59.2]} 2. Nf3 {[%clk 0:03:01.2]}
2... e6 {[%clk 0:02:59.2]} 3. e3 {[%clk 0:03:01.1]} 3... c5 {[%clk 0:02:57.7]}
4. Bd3 {[%clk 0:03:01.4]} 4... Nc6 {[%clk 0:02:56.5]} 5. Nbd2 {[%clk 0:02:57.9]}
5... d5 {[%clk 0:02:55.4]} 6. c3 {[%clk 0:02:57.8]} 6... Bd6 {[%clk 0:02:54.5]}
7. Qe2 {[%clk 0:02:57.9]} 7... O-O {[%clk 0:02:50.2]} 8. dxc5 {[%clk 0:02:58]}
8... Bxc5 {[%clk 0:02:49.9]} 9. e4 {[%clk 0:02:58.8]} 9... Qc7 {[%clk 0:02:46]}
10. O-O {[%clk 0:02:56.3]} 10... b6 {[%clk 0:02:43.3]} 11. h3 {[%clk 0:02:48]}
11... Nh5 {[%clk 0:02:36.9]} 12. Nb3 {[%clk 0:02:46]} 12... Ng3 {[%clk
0:02:36.2]} 13. Qc2 {[%clk 0:02:29.3]} 13... Nxf1 {[%clk 0:02:31.3]} 14. exd5
{[%clk 0:02:12.4]} 14... exd5 {[%clk 0:02:28.7]} 15. Nxc5 {[%clk 0:02:05.1]}
15... bxc5 {[%clk 0:02:27.6]} 16. Bxh7+ {[%clk 0:01:52.8]} 16... Kh8 {[%clk
0:02:26.6]} 17. Kxf1 {[%clk 0:01:52.4]} 17... g6 {[%clk 0:01:59.4]} 18. Bxg6
{[%clk 0:01:43.2]} 18... fxg6 {[%clk 0:02:00.3]} 19. Qxg6 {[%clk 0:01:41.8]}
19... Bf5 {[%clk 0:02:00.2]} 20. Qh6+ {[%clk 0:01:23.9]} 20... Kg8 {[%clk
0:02:00.2]} 21. Bf4 {[%clk 0:01:21.3]} 21... Qd7 {[%clk 0:01:57.4]} 22. Bd6
{[%clk 0:00:18.5]} 22... Rf7 {[%clk 0:01:22.1]} 23. Ne5 {[%clk 0:00:18.6]} 23...
Nxe5 {[%clk 0:00:58.1]} 24. Bxe5 {[%clk 0:00:19.5]} 24... Rh7 {[%clk 0:00:56.1]}
25. Qg5+ {[%clk 0:00:19.7]} 25... Kf8 {[%clk 0:00:56.1]} 26. Rd1 {[%clk
0:00:19.3]} 26... Re8 {[%clk 0:00:46.7]} 27. Qf6+ {[%clk 0:00:14.6]} 27... Qf7
{[%clk 0:00:43.2]} 28. Bd6+ {[%clk 0:00:14.9]} 28... Kg8 {[%clk 0:00:43.2]} 29.
Qxf7+ {[%clk 0:00:14.5]} 29... Rxf7 {[%clk 0:00:42.6]} 30. Rxd5 {[%clk
0:00:14.7]} 30... c4 {[%clk 0:00:38.8]} 31. Rc5 {[%clk 0:00:14.5]} 31... Bd3+
{[%clk 0:00:36.6]} 32. Kg1 {[%clk 0:00:14.9]} 32... Re2 {[%clk 0:00:36.3]} 33.
Bg3 {[%clk 0:00:13.7]} 33... Rxb2 {[%clk 0:00:35.9]} 34. Rc8+ {[%clk 0:00:13.6]}
34... Kh7 {[%clk 0:00:35.2]} 35. Be5 {[%clk 0:00:11.1]} 35... Rxa2 {[%clk
0:00:33.9]} 0-1

[Event "*** SCC Grand Prix: Titled Tuesday Blitz"]
[Site "Chess.com"]
[Date "2020.07.21"]
[Round "2"]
[White "Bazarov04"]
[Black "Hikaru"]
[Result "0-1"]
[WhiteElo "2604"]
[BlackElo "3262"]
[TimeControl "180+1"]
[EndTime "10:17:13 PDT"]
[Termination "Hikaru won on time"]

1. e4 {[%clk 0:03:00]} 1... g6 {[%clk 0:02:58.5]} 2. d4 {[%clk 0:02:56.8]} 2...
Bg7 {[%clk 0:02:58.3]} 3. Nc3 {[%clk 0:02:57.1]} 3... a6 {[%clk 0:02:44.9]} 4.
f4 {[%clk 0:02:45.5]} 4... c6 {[%clk 0:02:43.6]} 5. Nf3 {[%clk 0:02:44.8]} 5...
d5 {[%clk 0:02:43.9]} 6. Be2 {[%clk 0:02:34.6]} 6... Bg4 {[%clk 0:02:41.1]} 7.
exd5 {[%clk 0:02:23.4]} 7... cxd5 {[%clk 0:02:40.7]} 8. Ne5 {[%clk 0:02:23.3]}
8... Bxe2 {[%clk 0:02:41]} 9. Qxe2 {[%clk 0:02:23.5]} 9... e6 {[%clk 0:02:41.8]}
10. O-O {[%clk 0:02:11.4]} 10... Ne7 {[%clk 0:02:41.5]} 11. Be3 {[%clk
0:02:10.3]} 11... Nbc6 {[%clk 0:02:37.8]} 12. Rad1 {[%clk 0:02:08.7]} 12... Rc8
{[%clk 0:02:36.9]} 13. Kh1 {[%clk 0:02:07.3]} 13... O-O {[%clk 0:02:34.7]} 14.
Bg1 {[%clk 0:02:03.6]} 14... Nf5 {[%clk 0:02:31.2]} 15. Rd3 {[%clk 0:01:57.4]}
15... Nd6 {[%clk 0:02:29.3]} 16. Rh3 {[%clk 0:01:51]} 16... b5 {[%clk
0:02:27.3]} 17. Nd1 {[%clk 0:01:11.6]} 17... Qc7 {[%clk 0:02:05]} 18. Qe1 {[%clk
0:00:58.8]} 18... Ne7 {[%clk 0:01:45.9]} 19. c3 {[%clk 0:00:39.7]} 19... Ne4
{[%clk 0:01:39.5]} 20. Ne3 {[%clk 0:00:31.8]} 20... f6 {[%clk 0:01:36.9]} 21.
Nd3 {[%clk 0:00:31]} 21... Nf5 {[%clk 0:01:35]} 22. g4 {[%clk 0:00:20.2]} 22...
Nfd6 {[%clk 0:01:28.8]} 23. Qh4 {[%clk 0:00:19.7]} 23... h6 {[%clk 0:01:28.3]}
24. f5 {[%clk 0:00:16]} 24... exf5 {[%clk 0:01:19.9]} 25. gxf5 {[%clk 0:00:16]}
25... g5 {[%clk 0:01:20.5]} 26. Qh5 {[%clk 0:00:11.3]} 26... Qf7 {[%clk
0:01:19.7]} 27. Qxf7+ {[%clk 0:00:11.1]} 27... Kxf7 {[%clk 0:01:08.3]} 28. Nxd5
{[%clk 0:00:12]} 28... Rfe8 {[%clk 0:01:08.1]} 29. Re3 {[%clk 0:00:11.5]} 29...
Nc4 {[%clk 0:01:07]} 30. Re2 {[%clk 0:00:10.1]} 30... Ng3+ {[%clk 0:01:06.4]}
31. hxg3 {[%clk 0:00:10.3]} 31... Rxe2 {[%clk 0:01:07.3]} 32. Nc5 {[%clk
0:00:09.3]} 32... Rxb2 {[%clk 0:01:03.8]} 33. a3 {[%clk 0:00:08.4]} 33... Nxa3
{[%clk 0:01:03.2]} 34. Ne6 {[%clk 0:00:07.8]} 34... Rb1 {[%clk 0:01:01.9]} 35.
Rf2 {[%clk 0:00:07.3]} 35... Nc4 {[%clk 0:01:00.8]} 36. Ra2 {[%clk 0:00:07.2]}
36... a5 {[%clk 0:01:00.6]} 37. Ndc7 {[%clk 0:00:05.6]} 37... a4 {[%clk
0:00:59.8]} 38. d5 {[%clk 0:00:05.3]} 38... a3 {[%clk 0:01:00.2]} 39. g4 {[%clk
0:00:04.4]} 39... Rb2 {[%clk 0:00:58.2]} 40. Ra1 {[%clk 0:00:04.5]} 40... a2
{[%clk 0:00:58.5]} 41. d6 {[%clk 0:00:03.8]} 41... Nxd6 {[%clk 0:00:57.8]} 0-1

[Event "*** SCC Grand Prix: Titled Tuesday Blitz"]
[Site "Chess.com"]
[Date "2020.07.21"]
[Round "2"]
[White "qingaunlee"]
[Black "Sn00pPawn"]
[Result "1-0"]
[WhiteElo "2347"]
[BlackElo "1784"]
[TimeControl "180+1"]
[EndTime "10:17:14 PDT"]
[Termination "qingaunlee won on time"]

1. e4 {[%clk 0:03:00.9]} 1... c5 {[%clk 0:02:59.6]} 2. Nf3 {[%clk 0:03:00.4]}
2... d6 {[%clk 0:03:00]} 3. d4 {[%clk 0:03:00.2]} 3... cxd4 {[%clk 0:03:00.9]}
4. Nxd4 {[%clk 0:03:00.7]} 4... Nf6 {[%clk 0:03:01.6]} 5. Nc3 {[%clk 0:03:01]}
5... a6 {[%clk 0:03:02.1]} 6. Bg5 {[%clk 0:03:00.4]} 6... e6 {[%clk 0:03:02.2]}
7. f4 {[%clk 0:03:00.2]} 7... Qb6 {[%clk 0:03:02.1]} 8. Nb3 {[%clk 0:02:55]}
8... Be7 {[%clk 0:03:00.8]} 9. Qf3 {[%clk 0:02:54]} 9... Nbd7 {[%clk 0:03:00]}
10. O-O-O {[%clk 0:02:53.4]} 10... h6 {[%clk 0:02:58.9]} 11. Bh4 {[%clk
0:02:51.2]} 11... Qc7 {[%clk 0:02:56]} 12. Bd3 {[%clk 0:02:50.5]} 12... g5
{[%clk 0:02:36.3]} 13. fxg5 {[%clk 0:02:45.4]} 13... Ne5 {[%clk 0:02:35.6]} 14.
Qe2 {[%clk 0:02:41.3]} 14... Nfg4 {[%clk 0:02:32.1]} 15. h3 {[%clk 0:02:33]}
15... hxg5 {[%clk 0:02:02.5]} 16. Bg3 {[%clk 0:02:32.3]} 16... Nf6 {[%clk
0:01:56.3]} 17. Bxe5 {[%clk 0:02:30.8]} 17... dxe5 {[%clk 0:01:55.3]} 18. Rhf1
{[%clk 0:02:29.2]} 18... Bd7 {[%clk 0:01:31.3]} 19. Qe3 {[%clk 0:02:15.2]} 19...
g4 {[%clk 0:01:00.6]} 20. hxg4 {[%clk 0:02:09]} 20... Nxg4 {[%clk 0:00:55.7]}
21. Qf3 {[%clk 0:02:08.4]} 21... Nf6 {[%clk 0:00:33.6]} 22. g4 {[%clk
0:02:06.5]} 22... O-O-O {[%clk 0:00:32.1]} 23. Kb1 {[%clk 0:01:52]} 23... Rdg8
{[%clk 0:00:29.4]} 24. Rg1 {[%clk 0:01:50.7]} 24... Be8 {[%clk 0:00:21.9]} 25.
Be2 {[%clk 0:01:44.9]} 25... Nh7 {[%clk 0:00:18.7]} 26. Qe3 {[%clk 0:01:42.2]}
26... Ng5 {[%clk 0:00:16.6]} 27. Rg3 {[%clk 0:01:24.3]} 27... Rh2 {[%clk
0:00:13.9]} 28. Bf1 {[%clk 0:00:59]} 28... Kb8 {[%clk 0:00:13.5]} 29. Qg1 {[%clk
0:00:56.3]} 29... Rgh8 {[%clk 0:00:11.4]} 30. Bg2 {[%clk 0:00:54.4]} 30... Bc6
{[%clk 0:00:09.7]} 31. Qe1 {[%clk 0:00:49.1]} 31... Bb4 {[%clk 0:00:08.9]} 32.
Nd2 {[%clk 0:00:45.4]} 32... Bxc3 {[%clk 0:00:08.5]} 33. bxc3 {[%clk 0:00:45]}
33... Ba4 {[%clk 0:00:07.6]} 34. Nb3 {[%clk 0:00:42.3]} 34... Rc8 {[%clk
0:00:04.2]} 35. Qg1 {[%clk 0:00:41]} 35... Rhh8 {[%clk 0:00:03.2]} 36. Rgd3
{[%clk 0:00:40.9]} 36... Rhd8 {[%clk 0:00:02.4]} 37. Qe3 {[%clk 0:00:38.9]} 1-0